bitfinex-derivatives/quotes_ETHF0:USTF0_20230403
["timestamp","ask_amount","ask_price","bid_price","bid_amount"]
[1680546692455,2.74978166,1813.3,1812.7,5.4128]
[1680546692640,2.74978166,1813.3,1812.9,3.2078]
[1680546693442,2.74978166,1813.3,1812.7,2.205]
[1680546693742,2.205,1813.0,1812.4,5.4098]
[1680546694247,2.205,1813.0,1812.6,3.2078]
[1680546694945,2.205,1813.0,1812.4,2.202]
[1680546695333,3.205,1813.0,1812.4,5.4098]
[1680546696244,0.24766595,1812.9,1812.4,5.4098]
[1680546696947,0.24766595,1812.9,1812.6,3.2078]
[1680546697145,5.4048,1813.3,1812.8,3.2078]
[1680546697339,0.540522,1813.4,1813.1,3.2078]
[1680546697540,2.205,1813.5,1813.3,3.2078]
[1680546698348,2.205,1813.5,1813.1,3.2078]
[1680546699247,2.205,1813.5,1813.3,3.2078]
[1680546699446,2.205,1813.5,1813.1,3.2078]
[1680546700442,3.74700188,1813.6,1813.1,5.3908]
[1680546700943,2.74700188,1813.6,1813.1,5.3908]
[1680546701642,2.74700188,1813.6,1813.1,2.183]
[1680546701838,2.189,1813.4,1812.9,3.2078]
[1680546702044,3.187,1813.5,1812.9,5.4128]
[1680546702446,1.0,1813.5,1813.0,2.205]
[1680546702651,2.189,1813.4,1812.9,5.4128]
[1680546702848,1.0,1813.3,1812.9,5.4128]
[1680546703047,2.189,1813.4,1812.9,5.4128]
[1680546703649,2.189,1813.4,1812.9,2.205]
[1680546704151,2.189,1813.4,1812.9,5.4128]
[1680546706361,11.06072646,1813.7,1813.1,2.205]
[1680546706857,11.06072646,1813.7,1813.1,5.4128]
[1680546707155,11.06072646,1813.7,1813.3,3.2078]
[1680546707355,0.312,1813.8,1813.4,2.202]
[1680546709953,1.312,1813.8,1813.4,2.202]
[1680546710258,0.312,1813.8,1813.4,2.202]
[1680546710557,0.312,1813.8,1813.6,2.193]
[1680546711055,5.40174173,1814.3,1813.6,2.193]
[1680546711056,3.78401437,1814.6,1813.7,7.737]
[1680546711256,6.32375749,1814.7,1814.2,2.183]
[1680546711557,0.01055368,1814.8,1814.5,3.2078]
[1680546711753,2.197,1814.9,1814.4,2.205]
[1680546711958,2.197,1814.9,1814.2,2.205]
[1680546711959,2.205,1814.7,1814.2,2.205]
[1680546712460,1.0,1814.6,1814.2,2.205]
[1680546713351,5.4128,1814.7,1814.2,2.205]
[1680546713657,1.0,1814.5,1814.2,2.205]
[1680546713854,1.0,1814.6,1814.2,2.205]
[1680546714152,5.4128,1814.7,1814.2,2.205]
[1680546714353,1.0,1814.6,1814.2,2.205]
[1680546714554,3.197,1814.6,1814.1,3.2078]
[1680546714759,3.2078,1814.5,1814.1,3.2078]
[1680546715862,3.2078,1814.5,1814.2,2.202]
[1680546717351,3.2078,1814.5,1814.1,5.4128]
[1680546717560,3.2078,1814.5,1814.3,2.183]
[1680546719360,6.3968,1814.8,1814.3,2.183]
[1680546719559,6.3968,1814.8,1814.3,5.3908]
[1680546719760,6.3968,1814.8,1814.3,2.183]
[1680546720257,6.3968,1814.8,1814.3,5.3908]
[1680546720561,6.3968,1814.8,1814.3,2.183]
[1680546720856,6.3968,1814.8,1814.4,2.205]
[1680546720857,3.2078,1814.8,1814.4,2.205]
[1680546721258,2.202,1814.5,1814.1,3.2078]
[1680546722059,3.2078,1814.6,1814.3,2.193]
[1680546723261,4.2078,1814.8,1814.3,5.4008]
[1680546723559,3.187,1814.9,1814.3,5.4008]
[1680546723758,2.187,1814.9,1814.3,5.4008]
[1680546723963,3.187,1814.9,1814.3,5.4008]
[1680546724462,3.187,1814.9,1814.3,2.193]
[1680546724965,2.187,1814.9,1814.3,5.4008]
[1680546725259,3.187,1814.9,1814.3,5.4008]
[1680546725559,2.187,1814.9,1814.3,5.4008]
[1680546726157,2.187,1814.9,1814.3,2.193]
[1680546726456,3.2078,1814.8,1814.3,5.4008]
[1680546727162,3.2078,1814.8,1814.4,1.101]
[1680546727767,1.0,1814.7,1814.4,1.101]
[1680546727962,3.2078,1814.8,1814.4,1.101]
[1680546728264,1.0,1814.7,1814.4,1.101]
[1680546728953,3.2078,1814.8,1814.4,1.101]
[1680546729158,4.2078,1814.8,1814.4,1.101]
[1680546729466,2.102,1814.9,1814.4,1.101]
[1680546730163,1.102,1814.6,1814.1,4.3008]
[1680546730461,3.2078,1814.8,1814.5,2.202]
[1680546730662,6.65,1815.0,1814.7,1.1]
[1680546731262,7.752,1815.0,1814.6,1.097]
[1680546731466,1.097,1814.9,1814.4,1.1]
[1680546731764,1.0,1814.8,1814.4,1.1]
[1680546732162,4.2078,1814.8,1814.4,1.1]
[1680546732664,3.2078,1814.8,1814.4,1.1]
[1680546733167,4.2078,1814.8,1814.4,1.1]
[1680546733663,1.0,1814.7,1814.4,1.1]
[1680546733867,4.3098,1814.5,1813.9,4.3098]
[1680546735262,3.2078,1814.3,1813.9,4.3098]
[1680546735767,3.2078,1814.3,1813.9,1.102]
[1680546736163,3.2078,1814.3,1814.2,1.1]
[1680546736471,4.3098,1814.8,1814.2,1.1]
[1680546736770,4.3098,1814.8,1814.3,1.101]
[1680546736971,4.3098,1814.8,1814.3,4.3088]
[1680546737167,5.4078,1814.8,1814.3,5.4118]
[1680546737365,5.4078,1814.8,1814.4,1.0]
[1680546737566,3.2078,1814.8,1814.5,2.186]
[1680546737972,3.2078,1814.7,1814.5,2.186]
[1680546738168,9.41821437,1815.0,1814.5,2.186]
[1680546738467,10.41821437,1815.0,1814.5,2.186]
[1680546738668,9.41821437,1815.0,1814.5,2.186]
[1680546738865,4.2078,1814.9,1814.5,2.186]
[1680546739369,3.2078,1814.9,1814.5,2.186]
[1680546740586,3.78401437,1814.9,1814.5,2.186]
[1680546742465,0.57621437,1814.8,1814.5,2.186]
[1680546742866,0.57621437,1814.8,1814.6,2.196]
[1680546743079,7.22621437,1815.0,1814.7,7.736]
[1680546743274,6.65,1815.0,1814.8,2.186]
[1680546743575,6.65,1815.0,1814.8,3.186]
[1680546743780,6.65,1815.0,1814.8,2.186]
[1680546744170,6.65,1815.0,1814.7,2.204]
[1680546744472,6.65,1815.0,1814.5,2.2]
[1680546744473,12.63401437,1815.0,1814.5,2.2]
[1680546744673,0.57621437,1814.9,1814.5,2.2]
[1680546744974,1.57621437,1814.9,1814.5,2.2]
[1680546745175,0.57621437,1814.9,1814.5,2.2]
[1680546745472,5.4118,1814.8,1814.3,2.204]
[1680546745875,3.2078,1814.8,1814.4,2.2]
[1680546746475,3.78401437,1814.8,1814.4,2.2]
[1680546746772,0.57621437,1814.8,1814.4,2.2]
[1680546746965,0.86317519,1814.9,1814.6,2.195]
[1680546746966,0.57621437,1814.9,1814.6,2.195]
[1680546747569,2.77421437,1814.9,1814.4,5.4118]
[1680546747771,0.57621437,1814.8,1814.4,2.204]
[1680546747972,4.63738956,1814.9,1814.4,7.736]
[1680546748178,3.63738956,1814.9,1814.4,5.4118]
[1680546748478,0.57621437,1814.8,1814.4,2.204]
[1680546749274,1.43938956,1814.8,1814.4,2.204]
[1680546749470,4.64718956,1814.8,1814.4,2.204]
[1680546749871,3.78401437,1814.8,1814.6,2.204]
[1680546750576,0.57621437,1814.7,1814.6,2.204]
[1680546752478,1.43938956,1814.8,1814.6,2.204]
[1680546752674,6.65,1815.0,1814.7,24.7442714]
[1680546752979,6.65,1815.0,1814.9,7.718]
[1680546753174,6.65,1815.0,1814.9,2.204]
[1680546753571,7.22542262,1815.0,1814.9,2.204]
[1680546754172,6.65,1815.0,1814.9,2.204]
[1680546754791,7.2258448,1815.0,1814.9,2.204]
[1680546755472,6.65,1815.0,1814.9,15.42857307]
[1680546755672,6.65,1815.0,1814.9,13.22457307]
[1680546756287,6.65,1815.0,1814.9,15.41957307]
[1680546756474,6.65,1815.0,1814.9,18.62737307]
[1680546756681,1.10410099,1815.5,1815.2,5.532]
[1680546756981,0.22931856,1815.8,1815.6,5.532]
[1680546757180,1.10148744,1816.0,1815.6,5.532]
[1680546757181,1.08855743,1816.0,1815.8,5.532]
[1680546757388,1.69381051,1816.7,1816.0,5.532]
[1680546757584,1.43596944,1816.7,1816.6,5.4018]
[1680546757790,0.15,1817.0,1816.6,5.4018]
[1680546757992,0.15,1817.0,1816.9,2.196]
[1680546758183,0.15,1817.0,1816.7,3.2078]
[1680546758394,0.15,1817.0,1816.6,2.24945983]
[1680546758395,6.14865215,1816.9,1816.6,0.04545983]
[1680546758578,1.43581657,1816.8,1816.3,2.194]
[1680546758781,0.03581657,1816.7,1816.3,3.2078]
[1680546758984,0.57441267,1816.4,1816.0,3.2078]
[1680546759183,0.57441267,1816.2,1815.9,1.0]
[1680546759681,5.4058,1816.1,1815.5,6.4118]
[1680546759887,2.204,1815.7,1815.2,0.52475415]
[1680546760081,2.204,1815.7,1815.3,13.21882866]
[1680546760281,8.78221267,1815.9,1815.0,2.194]
[1680546760282,2.192,1815.6,1815.0,2.194]
[1680546760482,7.192,1815.6,1815.1,13.21949879]
[1680546760783,5.4058,1815.3,1814.8,5.3938]
[1680546760985,5.4058,1815.3,1814.8,2.186]
[1680546761290,3.2078,1815.1,1814.8,2.186]
[1680546761487,3.2078,1815.1,1814.6,5.4018]
[1680546761785,5.4118,1815.2,1814.6,5.4018]
[1680546761991,0.55146596,1815.3,1815.0,2.204]
[1680546762192,3.2078,1815.5,1815.0,5.4118]
[1680546762689,3.2078,1815.3,1814.8,5.4028]
[1680546762896,2.204,1815.4,1814.8,5.4028]
[1680546762897,5.4118,1815.4,1814.8,5.4028]
[1680546763091,2.204,1815.4,1814.9,5.0]
[1680546763287,0.57441267,1815.9,1815.3,2.204]
[1680546763490,4.8614,1816.0,1815.8,5.4038]
[1680546763693,0.57441267,1816.2,1815.8,5.4038]
[1680546763890,0.57441267,1816.3,1816.0,3.2078]
[1680546764196,0.57441267,1816.3,1815.9,2.204]
[1680546764492,3.78221267,1816.5,1816.0,3.2078]
[1680546764695,7.86941267,1816.6,1816.0,3.2078]
[1680546764991,5.103,1816.6,1816.2,2.204]
[1680546765197,7.87541267,1816.6,1816.1,3.2078]
[1680546765386,5.103,1816.6,1816.3,2.196]
[1680546765787,0.57441267,1816.8,1816.5,2.204]
[1680546765985,3.78221267,1816.9,1816.5,2.204]
[1680546766192,0.57441267,1816.8,1816.5,2.204]
[1680546766391,3.2078,1816.9,1816.5,2.204]
[1680546767290,3.2078,1816.9,1816.5,5.4118]
[1680546767484,3.2078,1816.9,1816.3,2.204]
[1680546767485,2.204,1816.8,1816.3,2.204]
[1680546767689,2.204,1816.8,1816.3,5.4118]
[1680546768199,2.204,1816.8,1816.1,3.2078]
[1680546768200,2.204,1816.7,1816.1,5.4078]
[1680546768390,2.204,1816.7,1816.1,2.2]
[1680546768391,5.4118,1816.7,1816.1,2.2]
[1680546768591,5.4058,1816.5,1815.9,2.204]
[1680546769092,5.4058,1816.3,1815.8,3.2078]
[1680546769288,5.4058,1816.3,1815.7,2.186]
[1680546769885,2.198,1816.1,1815.6,3.2078]
[1680546770088,2.198,1816.1,1815.5,2.204]
[1680546770089,5.4058,1816.1,1815.5,2.204]
[1680546770889,5.4058,1816.3,1815.7,2.194]
[1680546771093,3.2078,1816.0,1815.7,2.194]
[1680546771501,5.4058,1816.3,1815.7,2.194]
[1680546772093,3.2078,1816.3,1815.8,2.204]
[1680546773095,2.77841267,1816.8,1816.2,2.186]
[1680546773300,3.2078,1816.7,1816.2,2.186]
[1680546774194,3.2078,1816.7,1816.3,1.0]
[1680546774399,4.9778,1817.0,1816.3,1.0]
[1680546774400,5.4118,1816.9,1816.4,2.204]
[1680546774601,3.2078,1816.7,1816.4,2.204]
[1680546775304,3.2078,1816.9,1816.4,2.204]
[1680546776007,3.2078,1816.9,1816.5,1.0]
[1680546776303,4.9778,1817.0,1816.8,2.204]
[1680546776510,0.15,1817.0,1816.8,2.204]
[1680546777105,0.15,1817.0,1816.7,2.2]
[1680546777408,0.15,1817.0,1816.8,2.195]
[1680546777807,0.15,1817.0,1816.9,1.0]
[1680546778202,3.3578,1817.0,1816.6,2.204]
[1680546778599,0.15,1817.0,1816.8,2.186]
[1680546780906,5.4058,1816.9,1816.2,2.186]
[1680546781100,3.2078,1816.7,1816.2,2.186]
[1680546781805,6.15,1817.0,1816.5,2.195]
[1680546781806,0.15,1817.0,1816.5,2.195]
[1680546782007,3.3578,1817.0,1816.6,2.204]
[1680546782208,3.2078,1816.8,1816.6,2.204]
[1680546782405,3.2078,1816.9,1816.6,2.204]
[1680546783123,0.15,1817.0,1816.9,14.768]
[1680546783308,5.37781267,1817.8,1816.9,20.1708]
[1680546783611,10.2152,1817.8,1817.2,2.194]
[1680546783807,10.2152,1817.8,1817.1,2.196]
[1680546783808,5.4118,1817.6,1817.1,2.196]
[1680546785504,3.2078,1817.6,1817.3,2.204]
[1680546785714,3.2078,1817.6,1817.5,2.2]
[1680546786006,4.8034,1817.8,1817.3,2.204]
[1680546786007,3.2078,1817.7,1817.3,2.204]
[1680546786905,2.198,1817.4,1816.9,1.0]
[1680546787107,2.198,1817.4,1816.6,3.2078]
[1680546787108,3.2078,1817.1,1816.6,7.5898]
[1680546787310,8.2078,1817.4,1816.6,4.382]
[1680546787608,3.2078,1817.0,1816.6,4.382]
[1680546788415,5.402,1817.6,1816.6,12.5898]
[1680546788609,3.2078,1817.3,1816.6,4.395]
[1680546788810,3.2078,1817.1,1816.6,4.395]
[1680546789109,3.2078,1817.2,1816.6,4.395]
[1680546789510,3.2078,1817.2,1816.6,7.6028]
[1680546789704,3.2078,1817.2,1816.6,9.927]
[1680546789915,3.2078,1817.6,1816.8,4.371]
[1680546790115,3.2078,1817.4,1816.8,4.371]
[1680546790309,3.2078,1817.2,1816.7,40.8]
[1680546790506,3.2078,1817.0,1816.7,40.8]
[1680546790704,3.2078,1817.0,1816.4,3.2078]
[1680546790909,3.2078,1817.2,1816.4,3.2078]
[1680546791211,5.376,1817.4,1816.5,1.0]
[1680546791212,3.2078,1816.9,1816.5,1.0]
[1680546793515,3.2078,1816.9,1816.3,4.371]
[1680546793704,3.2078,1816.9,1816.4,1.0]
[1680546793907,3.2078,1816.9,1816.3,45.171]
[1680546794308,3.2078,1816.7,1816.3,45.171]
[1680546795417,3.2078,1816.7,1816.3,4.371]
[1680546795714,3.2078,1816.7,1816.4,1.0]
[1680546795914,3.2078,1816.7,1816.5,40.8]
[1680546797922,3.2078,1816.7,1816.1,4.371]
[1680546798109,3.2078,1816.5,1816.0,3.2078]
[1680546799315,3.2078,1816.1,1815.7,4.402]
[1680546799914,3.2078,1816.1,1815.7,9.934]
[1680546800115,3.2078,1816.2,1815.7,9.934]
[1680546800319,3.2078,1816.2,1815.7,4.402]
[1680546801421,3.2078,1816.2,1815.6,8.12961571]
[1680546801624,3.2078,1816.2,1815.7,13.21605192]
[1680546801916,1.57441267,1816.6,1815.7,13.21605192]
[1680546801917,3.2078,1816.0,1815.7,13.21605192]
[1680546802118,3.2078,1816.0,1815.4,4.382]
[1680546802315,3.2078,1815.7,1815.5,13.21727882]
[1680546802808,3.2078,1815.7,1815.4,4.382]
[1680546803008,1.0,1816.2,1815.6,1.0]
[1680546803212,4.2078,1816.2,1815.4,4.382]
[1680546803409,3.2078,1816.0,1815.5,13.21746149]
[1680546804212,1.0,1816.2,1815.4,4.382]
[1680546804213,3.2078,1815.8,1815.4,4.382]
[1680546804614,3.2078,1815.8,1815.3,3.2078]
[1680546804813,3.2078,1815.8,1815.4,13.21831134]
[1680546805618,3.2078,1815.7,1815.4,13.21831134]
[1680546806222,4.2078,1816.1,1815.5,1.0]
[1680546806424,3.2078,1815.9,1815.3,7.5928]
[1680546806613,3.2078,1815.9,1815.4,14.21777141]
[1680546806817,3.2078,1815.9,1815.5,13.21777141]
[1680546807124,3.2078,1816.1,1815.6,1.0]
[1680546807625,3.2078,1816.1,1815.5,4.371]
[1680546807820,3.2078,1815.9,1815.3,14.1418]
[1680546808019,3.2078,1816.1,1815.4,13.21772549]
[1680546808220,3.2078,1815.8,1815.4,13.21772549]
[1680546809230,5.7426,1816.4,1815.7,18.1418]
[1680546809422,0.57441267,1816.6,1816.1,4.385]
[1680546809629,3.78221267,1816.7,1816.1,7.5928]
[1680546809824,3.78221267,1816.7,1816.1,4.385]
[1680546810034,0.57441267,1816.6,1816.1,4.385]
[1680546810327,3.2078,1816.5,1816.1,3.2078]
[1680546810526,3.2078,1816.5,1816.0,4.395]
[1680546811823,3.2078,1816.3,1816.0,4.371]
[1680546812525,3.2078,1816.3,1815.8,4.402]
[1680546813428,3.2078,1816.3,1815.7,3.2078]
[1680546813731,0.57441267,1816.5,1815.7,4.371]
[1680546813732,3.2078,1816.1,1815.7,4.371]
[1680546814730,3.2078,1816.1,1815.6,40.8]
[1680546815133,3.2078,1815.9,1815.6,40.8]
[1680546815428,3.2078,1815.9,1815.5,7.5788]
[1680546815634,5.0028,1816.2,1815.8,4.382]
[1680546815830,5.0852,1816.6,1816.1,3.2078]
[1680546816029,0.57441267,1816.7,1816.1,7.5788]
[1680546816333,0.57441267,1816.7,1816.1,4.371]
[1680546816525,0.57441267,1816.7,1816.1,7.5788]
[1680546816726,0.57441267,1816.6,1816.1,4.371]
[1680546817233,3.78221267,1816.6,1816.1,4.371]
[1680546817536,3.2078,1816.6,1816.1,4.371]
[1680546817926,0.57441267,1816.7,1816.1,13.1108]
[1680546818129,3.2078,1816.6,1816.1,9.903]
[1680546818330,0.57441267,1816.7,1816.1,13.1108]
[1680546818733,0.57441267,1816.6,1816.1,4.371]
[1680546819127,0.57441267,1816.7,1816.4,5.532]
[1680546819335,0.57441267,1817.2,1816.6,14.666]
[1680546819638,0.86134762,1817.5,1817.1,4.382]
[1680546820024,0.86134762,1817.6,1817.1,9.914]
[1680546820531,0.86134762,1817.5,1817.1,9.914]
[1680546820735,0.86134762,1817.6,1817.1,13.1218]
[1680546821031,0.86134762,1817.5,1817.1,9.914]
[1680546821227,0.86134762,1817.6,1817.1,9.914]
[1680546821936,0.86134762,1817.6,1817.1,13.1218]
[1680546822138,0.86134762,1817.6,1817.1,9.914]
[1680546822932,0.86134762,1817.6,1817.2,1.0]
[1680546823534,0.86134762,1817.6,1817.2,4.2078]
[1680546823727,0.86134762,1817.6,1817.1,9.914]
[1680546823930,4.06914762,1817.7,1817.1,9.914]
[1680546824129,4.06914762,1817.7,1817.2,3.2078]
[1680546824338,0.86134762,1817.6,1817.1,9.914]
[1680546824526,4.06914762,1817.7,1817.1,7.5898]
[1680546824935,0.86134762,1817.6,1817.0,4.385]
[1680546825335,3.2078,1817.5,1817.0,4.385]
[1680546826138,3.2078,1817.1,1816.7,3.2078]
[1680546826343,3.2078,1817.1,1816.6,4.402]
[1680546826542,3.2078,1817.1,1816.4,7.6028]
[1680546826843,3.2078,1816.9,1816.4,7.6028]
[1680546827036,0.86134762,1817.3,1816.2,5.532]
[1680546827037,3.2078,1816.7,1816.3,4.402]
[1680546827739,3.2078,1816.7,1816.4,1.0]
[1680546827942,3.2078,1817.0,1816.4,8.6028]
[1680546828162,3.2078,1817.0,1816.6,4.382]
[1680546828333,3.2078,1817.0,1816.7,1.0]
[1680546828740,3.2078,1817.0,1816.6,4.382]
[1680546829343,3.2078,1817.0,1816.6,7.5898]
[1680546829543,3.2078,1817.0,1816.6,4.382]
[1680546831238,3.2078,1817.0,1816.4,7.6098]
[1680546831439,1.86134762,1817.2,1816.4,7.6098]
[1680546831440,3.2078,1816.8,1816.4,7.6098]
[1680546831634,3.2078,1816.8,1816.5,1.0]
[1680546831839,3.2078,1816.8,1816.4,7.6098]
[1680546832042,3.2078,1816.8,1816.3,1.0]
[1680546832043,3.2078,1816.8,1816.3,5.402]
[1680546832233,3.2078,1816.8,1816.3,4.402]
[1680546833335,3.2078,1816.8,1816.2,4.2078]
[1680546833336,4.06914762,1817.3,1816.7,4.385]
[1680546833738,4.06914762,1817.3,1816.8,3.2078]
[1680546834141,4.06914762,1817.3,1816.7,4.385]
[1680546834736,4.06914762,1817.3,1816.8,3.2078]
[1680546834942,4.06914762,1817.3,1816.7,4.385]
[1680546836436,3.2078,1817.1,1816.7,4.385]
[1680546837042,9.14284762,1817.4,1816.7,7.5928]
[1680546837237,9.14284762,1817.4,1816.8,1.0]
[1680546837450,9.14284762,1817.4,1816.9,3.2078]
[1680546837849,0.86134762,1817.4,1817.1,9.934]
[1680546838145,4.06914762,1817.6,1817.1,4.402]
[1680546838947,4.06914762,1817.6,1817.2,1.0]
[1680546839248,4.06914762,1817.6,1817.1,4.402]
[1680546840347,5.65024762,1817.7,1817.1,4.402]
[1680546840647,5.65024762,1817.7,1817.2,1.0]
[1680546841054,5.65024762,1817.7,1817.1,8.6098]
[1680546841652,5.65024762,1817.7,1817.2,1.0]
[1680546842355,5.65024762,1817.7,1817.3,4.385]
[1680546842553,3.2078,1817.6,1817.3,4.385]
[1680546844548,3.2078,1817.4,1817.0,4.371]
[1680546845649,3.2078,1817.4,1817.1,1.0]
[1680546846451,3.2078,1817.4,1817.1,6.532]
[1680546847054,7.9967,1817.7,1817.1,9.7398]
[1680546847355,7.9967,1817.7,1817.2,4.402]
[1680546847754,4.7889,1817.7,1817.2,4.402]
[1680546848353,7.9967,1817.7,1817.2,4.402]
[1680546851359,3.2078,1817.5,1817.1,3.2078]
[1680546851659,8.85804762,1817.7,1817.1,8.7398]
[1680546851956,8.85804762,1817.7,1817.2,9.934]
[1680546851957,7.9967,1817.7,1817.2,9.934]
[1680546852158,7.9967,1817.7,1817.3,2.198]
[1680546853158,8.85804762,1817.7,1817.3,2.198]
[1680546853659,3.2078,1817.5,1817.1,2.2]
[1680546853860,1.0,1817.4,1817.1,2.2]
[1680546854065,3.2078,1817.3,1817.1,2.2]
[1680546854967,0.86085039,1817.9,1817.2,5.4078]
[1680546855263,0.86085039,1817.9,1817.7,2.2]
[1680546855659,0.86085039,1817.9,1817.5,2.2]
[1680546856159,0.86085039,1817.9,1817.6,3.2078]
[1680546856371,0.86085039,1817.9,1817.5,2.2]
[1680546856659,0.86085039,1817.8,1817.5,5.4078]
[1680546856865,0.86085039,1817.8,1817.5,2.2]
[1680546857660,0.86085039,1817.8,1817.5,5.4078]
[1680546857864,2.181,1817.7,1817.2,5.4078]
[1680546858061,1.0,1817.6,1817.2,5.4078]
[1680546858269,2.182,1817.5,1817.2,3.2078]
[1680546858869,1.0,1817.4,1817.2,3.2078]
[1680546859165,3.04285039,1817.5,1817.0,5.4058]
[1680546859564,0.86085039,1817.5,1817.2,2.2]
[1680546860869,0.86085039,1817.4,1817.2,2.2]
[1680546861068,1.86085039,1817.4,1817.2,2.2]
[1680546861267,1.86085039,1817.4,1817.0,5.4078]
[1680546861769,4.04285039,1817.3,1817.0,3.2078]
[1680546862066,1.0,1817.2,1817.0,3.2078]
[1680546862266,4.04285039,1817.3,1817.0,3.2078]
[1680546862868,3.04285039,1817.3,1817.0,3.2078]
[1680546863265,0.86085039,1817.2,1817.0,3.2078]
[1680546863563,3.33095157,1817.1,1816.6,3.2078]
[1680546863768,3.33095157,1817.1,1816.0,3.33256765]
[1680546863769,3.05429758,1816.9,1816.4,3.2078]
[1680546863968,3.05429758,1816.9,1816.5,13.21119592]
[1680546864175,5.1584,1817.0,1816.8,5.4078]
[1680546864369,4.06044959,1817.0,1816.9,15.40919592]
[1680546864573,0.86329758,1817.4,1816.9,15.40919592]
[1680546864874,0.86329758,1817.3,1817.2,5.4078]
[1680546865673,0.86329758,1817.3,1817.2,2.2]
[1680546865868,0.86329758,1817.3,1817.2,5.4078]
[1680546866069,0.86329758,1817.4,1817.2,18.61538515]
[1680546866276,0.86329758,1817.4,1817.2,5.4078]
[1680546866672,0.86329758,1817.3,1817.2,3.2078]
[1680546867174,1.14895157,1817.3,1817.2,3.2078]
[1680546867362,2.14895157,1817.3,1817.1,2.2]
[1680546867563,0.8639375,1817.2,1817.1,2.2]
[1680546867776,0.8639375,1817.2,1817.0,3.2078]
[1680546868271,3.0639375,1817.1,1816.8,3.2078]
[1680546868474,0.86394829,1817.0,1816.8,3.2078]
[1680546868777,0.86394829,1816.9,1816.5,3.2078]
[1680546869073,1.0,1816.8,1816.6,13.21100782]
[1680546869276,1.86403597,1816.8,1816.6,13.21100782]
[1680546870274,1.0,1816.7,1816.6,13.21100782]
[1680546870467,3.182,1816.7,1816.1,3.06898252]
[1680546870682,7.25383597,1816.7,1816.2,3.2078]
[1680546872173,2.191,1816.6,1816.2,3.2078]
[1680546872877,1.0,1816.5,1816.2,3.2078]
[1680546873473,4.2078,1816.5,1816.0,5.4078]
[1680546873973,2.181,1816.4,1816.0,3.2078]
[1680546874169,2.181,1816.4,1815.8,6.27678252]
[1680546874376,4.2078,1816.3,1815.8,6.27678252]
[1680546874676,1.0,1816.2,1815.8,6.27678252]
[1680546874876,1.0,1816.2,1815.6,1.15864336]
[1680546874877,2.2,1815.9,1815.6,1.15864336]
[1680546875082,2.2,1815.9,1815.4,4.07678252]
[1680546875379,1.0,1815.8,1815.4,3.2078]
[1680546876078,0.20197311,1815.7,1815.4,3.2078]
[1680546876372,3.40977311,1815.7,1815.2,5.4078]
[1680546876574,1.0,1815.6,1815.2,5.4078]
[1680546878375,1.0,1815.6,1815.2,3.2078]
[1680546878376,3.182,1815.6,1815.2,3.2078]
[1680546878573,3.2078,1815.5,1815.1,2.199]
[1680546878774,1.0,1815.4,1815.1,2.199]
[1680546879472,1.0,1815.4,1815.0,3.2078]
[1680546879877,3.2078,1815.3,1814.9,2.2]
[1680546880477,3.2078,1815.1,1814.7,2.2]
[1680546880678,2.191,1815.0,1814.6,3.76142713]
[1680546880880,1.0,1814.9,1814.6,3.2078]
[1680546881274,4.2078,1814.9,1814.4,5.4078]
[1680546881876,2.2,1815.0,1814.6,2.2]
[1680546882078,3.2078,1815.1,1814.7,3.2]
[1680546882378,3.2078,1815.1,1814.7,2.2]
[1680546882777,3.2078,1815.2,1814.7,2.2]
[1680546883082,4.2078,1815.2,1814.7,2.2]
[1680546883578,1.0,1815.1,1814.7,2.2]
[1680546883970,3.2078,1815.0,1814.7,2.2]
[1680546885580,3.2078,1815.0,1814.5,2.198]
[1680546887380,3.2078,1814.8,1814.5,2.198]
[1680546889289,3.2078,1814.8,1814.4,3.2078]
[1680546890082,3.2078,1814.8,1814.3,9.48231659]
[1680546890685,2.182,1815.1,1814.6,2.198]
[1680546890886,2.182,1815.1,1814.8,0.15185115]
[1680546891088,0.62622911,1815.0,1814.8,0.15185115]
[1680546892286,2.182,1815.2,1814.8,0.15185115]
[1680546892489,10.359,1815.4,1814.8,6.55965115]
[1680546892693,8.159,1815.4,1815.0,5.4078]
[1680546893693,4.9512,1815.4,1815.2,3.2078]
[1680546893880,2.181,1815.6,1815.2,3.2078]
[1680546894388,1.0,1815.7,1815.2,5.4078]
[1680546894793,6.3898,1815.8,1815.2,5.4078]
[1680546895890,5.3898,1815.8,1815.2,5.4078]
[1680546896093,3.2078,1815.8,1815.4,3.2078]
[1680546896292,4.7454,1815.9,1815.6,2.2]
[1680546896489,4.7454,1815.9,1815.6,5.4078]
[1680546896885,4.7454,1815.9,1815.8,2.199]
[1680546897090,3.2078,1816.2,1815.8,2.199]
[1680546899799,2.2,1816.1,1815.6,5.4058]
[1680546900195,3.2078,1816.0,1815.6,5.4058]
[1680546900396,3.182,1815.9,1815.6,3.2078]
[1680546900792,0.55288361,1816.5,1815.9,5.532]
[1680546900993,4.8767,1816.7,1816.2,3.2078]
[1680546901194,2.2,1816.6,1816.4,3.2078]